bitfinex/quotes_SOLUSD_20220302
["timestamp","ask_amount","ask_price","bid_price","bid_amount"]
[1646227952958,17.24052189,102.29,102.22,56.41386788]
[1646227953162,14.9246,102.29,102.22,56.41386788]
[1646227953962,39.03458579,102.29,102.22,56.66386788]
[1646227954567,38.78458579,102.29,102.22,56.66386788]
[1646227954863,16.98839439,102.31,102.22,114.75386788]
[1646227955064,16.98839439,102.31,102.22,56.66386788]
[1646227955267,41.09838018,102.31,102.22,56.66386788]
[1646227955467,52.63838018,102.31,102.18,3.911]
[1646227955666,3.912,102.3,102.18,3.911]
[1646227955866,48.9409,102.28,102.18,3.911]
[1646227956166,17.54,102.27,102.18,3.911]
[1646227956366,43.96688018,102.27,102.18,3.911]
[1646227956566,44.21688018,102.27,102.19,59.48006519]
[1646227956966,24.10998579,102.26,102.19,59.73006519]
[1646227957170,73.04908579,102.26,102.19,59.73006519]
[1646227958968,73.04908579,102.26,102.18,3.911]
[1646227959168,73.04908579,102.26,102.11,53.6017]
[1646227959169,16.31371886,102.24,102.11,53.6017]
[1646227959371,11.54,102.23,102.11,48.6017]
[1646227959673,52.41990052,102.23,102.11,48.6017]
[1646227959873,26.42677828,102.22,102.08,23.7006]
[1646227960172,26.42677828,102.22,102.08,81.7906]
[1646227960173,15.455,102.21,102.08,81.7906]
[1646227960373,41.88177828,102.21,102.08,81.7906]
[1646227960570,26.42677828,102.2,102.09,6.0]
[1646227960770,37.96677828,102.2,102.09,64.09]
[1646227960969,13.85679249,102.2,102.09,64.09]
[1646227961170,28.54739249,102.2,102.1,45.21060274]
[1646227961471,126.60739249,102.2,102.06,10.21748055]
[1646227961669,100.62309182,102.18,102.02,23.3605]
[1646227961869,99.5545391,102.16,102.0,24.3362]
[1646227962071,3.918,102.15,102.0,24.3362]
[1646227962373,117.60226279,102.15,102.0,24.3362]
[1646227962572,44.36630652,102.14,102.01,44.52426108]
[1646227962772,15.458,102.13,102.01,44.52426108]
[1646227962976,60.43771102,102.13,102.01,44.52426108]
[1646227963171,28.09067141,102.12,102.01,44.52426108]
[1646227963372,13.2298634,102.11,102.01,44.52426108]
[1646227963578,6.0,102.1,102.01,44.52426108]
[1646227963775,11.54,102.09,102.01,44.52426108]
[1646227963975,11.54,102.09,101.95,93.664]
[1646227964174,56.37143371,102.09,101.95,23.0077]
[1646227964374,45.31852542,102.08,101.95,23.0077]
[1646227964574,13.1984376,102.07,101.95,23.0077]
[1646227964774,3.92,102.06,101.93,0.4903239]
[1646227964977,14.7156,102.0,101.93,0.4903239]
[1646227965574,14.9656,102.0,101.93,0.4903239]
[1646227965976,11.54,101.99,101.93,0.4903239]
[1646227966175,14.7208,101.98,101.93,0.4903239]
[1646227966375,26.2608,101.98,101.93,0.4903239]
[1646227966875,13.85668562,101.98,101.85,72.3973239]
[1646227967074,14.7229,101.96,101.86,54.50634521]
[1646227967275,14.7229,101.96,101.86,152.56634521]
[1646227967477,14.7229,101.96,101.86,54.50634521]
[1646227967676,0.25,102.0,101.87,58.09]
[1646227967974,6.25,102.0,101.88,60.74938608]
[1646227968376,3.923,101.99,101.88,60.74938608]
[1646227968677,15.463,101.99,101.88,60.74938608]
[1646227969177,15.463,101.99,101.9,47.04623049]
[1646227970176,64.537,101.99,101.9,47.04623049]
[1646227970379,19.27143932,101.99,101.9,47.04623049]
[1646227970581,25.88145246,101.98,101.85,24.9593]
[1646227970779,15.464,101.97,101.85,24.9593]
[1646227971279,14.7261,101.94,101.85,24.9593]
[1646227971478,11.54,101.94,101.85,24.9593]
[1646227971676,11.54,101.94,101.86,50.04657469]
[1646227971880,3.924,101.99,101.86,50.04657469]
[1646227972178,17.54,101.98,101.86,50.04657469]
[1646227972379,21.464,101.98,101.86,50.04657469]
[1646227972582,14.7217,101.97,101.87,6.0]
[1646227972779,6.0,101.98,101.88,45.59655788]
[1646227972979,6.0,101.98,101.88,45.84655788]
[1646227973581,17.54,101.98,101.88,45.59655788]
[1646227973879,3.924,101.97,101.88,45.59655788]
[1646227974079,11.79,101.97,101.88,45.59655788]
[1646227974281,22.824,101.97,101.88,45.59655788]
[1646227974487,25.14701242,101.97,101.85,24.9593]
[1646227974682,14.7293,101.92,101.84,70.38461846]
[1646227974882,11.54,101.95,101.84,70.38461846]
[1646227975084,15.464,101.94,101.84,70.38461846]
[1646227975381,11.54,101.94,101.85,58.85509357]
[1646227975582,14.724,101.96,101.85,58.85509357]
[1646227975782,11.54,101.96,101.85,58.85509357]
[1646227976181,15.47096871,101.96,101.85,58.85509357]
[1646227976381,15.47096871,101.96,101.84,70.38461846]
[1646227976382,45.27642117,101.96,101.84,70.38461846]
[1646227977182,14.7319,101.9,101.84,70.38461846]
[1646227977382,11.54,101.91,101.84,70.38461846]
[1646227977785,13.86301242,101.91,101.84,113.63313345]
[1646227977982,11.54,101.91,101.84,113.63313345]
[1646227978382,6.0,101.9,101.84,70.38461846]
[1646227978584,17.54,101.9,101.84,70.38461846]
[1646227978784,23.78901242,101.9,101.84,70.38461846]
[1646227979187,17.54,101.9,101.84,70.38461846]
[1646227979485,19.86301242,101.9,101.84,70.38461846]
[1646227979684,68.98191242,101.9,101.84,70.38461846]
[1646227979891,45.74446488,101.9,101.84,70.38461846]
[1646227980092,165.0,101.88,101.75,47.5497]
[1646227980290,15.468,101.87,101.69,152.1681]
[1646227980498,154.35560457,101.87,101.69,24.4235]
[1646227980785,154.35560457,101.87,101.7,56.94718231]
[1646227980786,2.32301242,101.86,101.7,56.94718231]
[1646227980988,15.47,101.85,101.7,56.94718231]
[1646227981186,17.12061579,101.85,101.7,56.94718231]
[1646227981389,2.32301242,101.84,101.7,56.94718231]
[1646227981589,14.7471,101.8,101.7,56.94718231]
[1646227982187,14.7471,101.8,101.69,24.4235]
[1646227982188,14.7471,101.8,101.72,53.87505767]
[1646227982387,11.54,101.83,101.74,54.03421081]
[1646227982588,11.54,101.84,101.75,6.0]
[1646227982789,14.7408,101.84,101.76,54.3681268]
[1646227983186,11.54,101.86,101.76,54.3681268]
[1646227984086,6.0,101.85,101.76,112.7081268]
[1646227984286,14.7377,101.86,101.76,112.7081268]
[1646227984486,11.54,101.88,101.77,64.09]
[1646227984687,34.2053,101.89,101.78,105.23442821]
[1646227984890,34.2053,101.89,101.79,6.0]
[1646227985106,34.2053,101.89,101.8,48.59320124]
[1646227985309,15.467,101.89,101.8,48.84320124]
[1646227985507,15.467,101.89,101.8,48.34320124]
[1646227985707,14.7345,101.88,101.8,48.34320124]
[1646227985909,119.11678653,101.92,101.8,48.34320124]
[1646227985910,11.54,101.9,101.81,58.09]
[1646227986108,3.927,101.91,101.82,48.302491]
[1646227986109,15.467,101.91,101.82,48.302491]
[1646227986511,11.54,101.91,101.82,106.392491]
[1646227986710,25.32331913,101.92,101.82,106.642491]
[1646227986910,61.64416234,101.94,101.84,58.09]
[1646227987111,14.7257,101.94,101.85,116.01959101]
[1646227987511,14.7257,101.94,101.85,52.17959101]
[1646227987711,3.924,101.93,101.86,6.0]
[1646227987914,3.924,101.93,101.87,58.93939392]
[1646227988310,39.17074805,101.94,101.87,58.93939392]
[1646227988511,39.17074805,101.94,101.88,6.0]
[1646227988712,14.7257,101.94,101.89,49.06729292]
[1646227990013,14.7274,101.93,101.89,49.06729292]
[1646227990312,39.17244805,101.93,101.82,47.1867]
[1646227990515,39.17244805,101.93,101.83,6.0]
[1646227990714,55.47538392,101.97,101.83,17.79]
[1646227990915,6.0,101.96,101.83,17.79]
[1646227991115,6.25,101.96,101.84,60.63904003]
[1646227991319,14.7244,101.95,101.85,114.56155661]
[1646227991517,14.7244,101.95,101.85,56.72155661]
[1646227991715,7.11,101.97,101.85,56.72155661]
[1646227991914,7.11,101.97,101.85,70.81059664]
[1646227992118,7.11,101.97,101.86,58.09]
[1646227992321,14.7227,101.96,101.87,58.20616502]
[1646227992515,7.11,101.97,101.87,58.45616502]
[1646227992719,11.034,101.97,101.87,58.45616502]
[1646227992915,11.034,101.97,101.87,58.20616502]
[1646227993321,7.11,101.97,101.87,116.29616502]
[1646227993521,21.8311,101.97,101.87,214.35616502]
[1646227993917,7.11,101.97,101.87,156.26616502]
[1646227994123,7.11,101.97,101.89,98.06]
[1646227994317,7.11,101.97,101.9,65.25938323]
[1646227994716,7.11,101.97,101.9,70.79938323]
[1646227995121,7.11,101.97,101.9,71.04938323]
[1646227996821,14.7153,102.01,101.91,185.0]
[1646227997019,14.9653,102.01,101.92,59.61459752]
[1646227997221,14.7153,102.01,101.92,59.86459752]
[1646227997620,14.7153,102.01,101.92,53.61459752]
[1646227997621,23.50727852,102.01,101.92,53.61459752]
[1646227998134,6.0,102.0,101.92,53.61459752]
[1646227998324,20.7168,102.0,101.92,53.61459752]
[1646227998521,23.30240264,102.0,101.92,53.61459752]
[1646227998722,23.46394519,101.99,101.85,11.54]
[1646227998923,36.42387029,101.99,101.82,70.7913]
[1646227999123,6.25960264,101.98,101.82,84.88034003]
[1646227999324,11.54,101.97,101.82,73.34034003]
[1646227999522,14.7281,101.92,101.82,73.34034003]
[1646227999723,14.7281,101.92,101.83,60.58740489]
[1646228000126,30.70465069,101.96,101.83,60.58740489]
[1646228000424,13.87560264,101.95,101.83,60.58740489]
[1646228000623,15.55841972,101.95,101.83,60.58740489]
[1646228000827,50.24459588,101.94,101.83,60.58740489]
[1646228001023,3.924,101.93,101.83,60.58740489]
[1646228001223,29.72354783,101.93,101.83,60.58740489]
[1646228001426,2.33560264,101.92,101.83,60.58740489]
[1646228001824,14.7324,101.89,101.83,60.58740489]
[1646228002625,2.33560264,101.92,101.83,60.58740489]
[1646228002826,64.5589,101.95,101.83,60.83740489]
[1646228003229,64.5589,101.95,101.83,63.38644492]
[1646228003430,90.35844783,101.95,101.83,63.38644492]
[1646228003632,86.43244783,101.95,101.83,63.38644492]
[1646228004029,14.7265,101.93,101.85,50.79115937]
[1646228004231,49.0981,101.93,101.85,50.79115937]
[1646228004431,23.46394519,101.92,101.85,50.79115937]
[1646228004832,23.46394519,101.92,101.85,49.66881728]
[1646228005031,14.7293,101.91,101.85,49.66881728]
[1646228005232,44.92994519,101.94,101.85,49.66881728]
[1646228005433,33.38994519,101.94,101.85,49.66881728]
[1646228005832,33.38994519,101.94,101.85,107.75881728]
[1646228006034,82.48234519,101.94,101.85,107.75881728]
[1646228006232,14.7264,101.93,101.85,107.75881728]
[1646228006433,14.7264,101.93,101.85,206.06881728]
[1646228006634,23.46394519,101.96,101.85,206.06881728]
[1646228006834,3.924,101.95,101.85,206.06881728]
[1646228007033,27.38794519,101.98,101.87,156.15]
[1646228007235,27.38794519,101.98,101.88,109.21884108]
[1646228007434,27.38794519,101.98,101.88,214.04584108]
[1646228007634,23.46394519,102.0,101.89,6.0]
[1646228007935,2.33560264,101.98,101.88,57.64584108]
[1646228008136,3.924,101.97,101.88,57.64584108]
[1646228008638,29.72354783,101.97,101.88,57.64584108]
[1646228008835,23.46394519,101.96,101.88,57.64584108]
[1646228009036,121.52394519,101.96,101.88,6.517]
[1646228009337,29.09711316,101.95,101.88,6.517]
[1646228009537,11.54,101.94,101.88,6.517]
[1646228009735,3.924,101.93,101.88,6.517]
[1646228009936,4.174,101.93,101.88,6.517]
[1646228010136,14.7283,101.91,101.88,6.517]
[1646228010537,3.03219997,101.9,101.88,6.517]
[1646228011837,3.03219997,101.9,101.89,52.39496542]
[1646228012037,14.7283,101.91,101.89,52.39496542]
[1646228012437,14.7283,101.91,101.88,6.517]
[1646228012637,14.726,101.93,101.88,6.517]
[1646228013037,63.8662,101.98,101.88,64.607]
[1646228013237,6.0,101.97,101.88,64.607]
[1646228013439,9.924,101.97,101.89,110.54642623]
[1646228013640,3.924,101.97,101.89,110.54642623]
[1646228013841,18.6427,101.98,101.89,110.54642623]
[1646228014037,6.25960264,102.01,101.89,110.79642623]
[1646228014239,6.25960264,102.01,101.91,156.15]
[1646228014539,6.0,102.0,101.92,43.17906476]
[1646228014738,6.0,102.0,101.94,117.0342356]
[1646228014940,20.7148,102.0,101.94,58.9442356]
[1646228015542,3.922,101.99,101.89,48.2877]
[1646228015739,3.922,101.99,101.89,48.0377]
[1646228016039,2.33560264,101.98,101.89,48.0377]
[1646228016239,2.58560264,101.98,101.89,48.0377]
[1646228016443,2.58560264,101.98,101.9,54.23239834]
[1646228016641,2.34002394,101.97,101.9,112.32239834]
[1646228016840,0.25,101.98,101.9,112.32239834]
[1646228017240,0.25,101.98,101.9,54.23239834]
[1646228017441,2.34002394,101.97,101.9,54.23239834]
[1646228019044,14.7221,101.95,101.9,54.23239834]
[1646228020244,14.9721,101.95,101.9,54.23239834]
[1646228020742,14.7201,101.97,101.9,54.23239834]
[1646228021445,49.0737,101.98,101.9,54.23239834]
[1646228021842,49.0793,101.97,101.9,54.23239834]
[1646228022042,47.2676601,101.98,101.86,48.7168]
[1646228022344,2.34002394,101.96,101.86,48.7168]
[1646228022553,13.88002394,101.96,101.86,48.7168]
[1646228022741,48.85163616,101.95,101.86,48.7168]
[1646228022942,48.85163616,101.95,101.86,146.7768]
[1646228022943,14.7256,101.93,101.86,146.7768]
[1646228023147,26.36094519,101.98,101.89,44.94731733]
[1646228023347,37.90094519,101.98,101.89,44.94731733]
[1646228023543,33.97694519,101.98,101.89,44.94731733]
[1646228023744,45.32669097,101.99,101.89,44.94731733]
[1646228023944,14.7206,101.96,101.89,44.94731733]
[1646228024149,14.7206,101.96,101.89,103.03731733]
[1646228025144,14.9706,101.96,101.89,103.03731733]
[1646228025543,14.9706,101.96,101.89,44.94731733]
[1646228025943,14.9706,101.96,101.89,103.03731733]
[1646228026145,0.25,101.96,101.89,44.94731733]
[1646228026344,33.97694519,101.97,101.89,44.94731733]
[1646228026544,22.43694519,101.95,101.89,44.94731733]
[1646228027349,14.7251,101.93,101.89,44.94731733]
[1646228029148,33.97694519,101.97,101.89,44.94731733]
[1646228029349,22.49069097,101.96,101.89,44.94731733]
[1646228029553,83.11123616,101.99,101.89,44.94731733]
[1646228029747,49.08054519,101.99,101.89,44.94731733]
[1646228029948,6.0,101.98,101.9,58.09]
[1646228030148,6.0,101.98,101.91,58.86099445]
[1646228030547,14.7207,101.96,101.91,58.86099445]
[1646228031952,37.15764519,101.96,101.91,58.86099445]
[1646228032955,37.40764519,101.96,101.91,58.86099445]
[1646228033352,37.40764519,101.96,101.87,24.6281]
[1646228033353,22.68694519,101.96,101.87,24.6281]
[1646228033552,22.68694519,101.96,101.85,27.1937]
[1646228033553,36.56629014,101.96,101.85,27.1937]
[1646228033774,14.16302655,101.95,101.85,27.1937]
[1646228033953,14.16302655,101.95,101.85,3.924]
[1646228034158,58.39964778,101.94,101.85,3.924]
[1646228034354,3.924,101.93,101.86,56.27759585]
[1646228034557,40.24029014,101.93,101.85,3.924]
[1646228034754,2.33934495,101.92,101.85,3.924]
[1646228034954,36.31629014,101.92,101.85,3.924]
[1646228035255,24.77629014,101.91,101.85,3.924]
[1646228035655,2.33934495,101.9,101.85,3.924]
[1646228036057,14.734,101.87,101.85,3.924]
[1646228036255,3.03219997,101.86,101.85,3.924]
[1646228036459,3.03219997,101.86,101.85,59.96238883]
[1646228036860,14.734,101.87,101.85,59.96238883]
[1646228037359,14.732,101.88,101.85,59.96238883]
[1646228037961,49.1118,101.9,101.85,59.96238883]
[1646228038364,22.43694519,101.91,101.85,56.03838883]
[1646228038562,14.7298,101.9,101.85,56.03838883]
[1646228038961,28.70316592,101.93,101.85,56.03838883]
[1646228039163,59.0287,101.94,101.85,56.03838883]
[1646228039164,6.0,101.92,101.85,114.12838883]
[1646228039364,53.0144,101.94,101.86,58.09]
[1646228039565,53.0144,101.94,101.87,44.10704069]
[1646228039763,14.7262,101.92,101.87,44.10704069]
[1646228040566,53.0048,101.96,101.88,156.15]
[1646228040763,6.0,101.95,101.89,101.56937495]
[1646228041384,22.43694519,101.98,101.89,101.56937495]
[1646228041583,71.50794519,101.98,101.89,199.87937495]
[1646228041884,14.7196,101.97,101.89,101.56937495]
[1646228042087,69.16484519,102.0,101.89,101.56937495]
[1646228042088,73.08884519,102.0,101.89,43.47937495]
[1646228042283,11.54,101.99,101.89,43.47937495]
[1646228042483,26.35994519,101.98,101.89,43.47937495]
[1646228042883,14.7236,101.94,101.89,43.47937495]
[1646228043082,15.464,101.96,101.89,43.47937495]
[1646228043283,6.0,101.95,101.87,22.5801]
[1646228043583,6.0,101.95,101.84,24.0261]
[1646228043584,17.54,101.95,101.84,24.0261]
[1646228043782,3.924,101.94,101.84,24.0261]
[1646228043984,15.464,101.94,101.84,24.0261]
[1646228044183,14.7287,101.91,101.84,24.0261]
[1646228044383,14.7287,101.91,101.85,58.97366474]
[1646228044884,3.926,101.94,101.85,58.97366474]
[1646228045085,17.80322073,101.95,101.85,58.97366474]
[1646228046087,14.7263,101.92,101.85,157.03366474]
[1646228046490,14.9763,101.92,101.85,157.03366474]
[1646228046988,14.7263,101.92,101.85,58.97366474]
[1646228047290,49.0972,101.93,101.85,58.97366474]
[1646228047489,6.0,101.92,101.85,58.97366474]
[1646228048188,6.25,101.92,101.85,58.97366474]
[1646228048590,3.924,101.94,101.85,58.97366474]
[1646228049090,36.0476,101.96,101.85,58.97366474]
[1646228049289,36.0476,101.96,101.85,157.03366474]
[1646228049690,39.9716,101.96,101.85,157.03366474]
[1646228050195,14.7263,101.92,101.85,58.97366474]
[1646228050992,14.9763,101.92,101.85,58.97366474]
[1646228051392,14.9763,101.92,101.85,157.03366474]
[1646228051594,14.9763,101.92,101.85,58.97366474]
[1646228051992,49.0889,101.95,101.85,58.97366474]
[1646228052394,49.0889,101.95,101.85,157.03366474]
[1646228052597,49.0889,101.95,101.85,59.22366474]
[1646228052996,14.7249,101.93,101.85,59.22366474]
[1646228053396,3.924,101.96,101.85,58.97366474]
[1646228053596,19.16094519,101.94,101.85,58.97366474]
[1646228053796,11.54,101.93,101.85,58.97366474]
[1646228053995,14.7307,101.89,101.85,58.97366474]
[1646228054599,14.9807,101.89,101.85,58.97366474]
[1646228055398,14.7323,101.88,101.83,22.7417]
[1646228055597,0.25,101.89,101.82,22.8918]
[1646228056397,0.25,101.89,101.83,54.54091984]
[1646228056598,11.54,101.91,101.83,54.54091984]
[1646228056798,11.79,101.91,101.83,54.54091984]
[1646228056999,14.7337,101.87,101.83,54.54091984]
[1646228057202,49.1123,101.9,101.83,54.54091984]
[1646228057403,4.176,101.91,101.83,54.54091984]
[1646228057601,0.25,101.91,101.83,54.54091984]
[1646228058204,14.7337,101.87,101.83,54.54091984]
[1646228058605,14.7337,101.87,101.79,14.8703]
[1646228059605,14.7337,101.87,101.8,59.32429491]
[1646228060005,14.7337,101.87,101.8,157.38429491]
[1646228060309,11.54,101.9,101.8,157.38429491]
[1646228060310,14.7316,101.89,101.8,157.38429491]
[1646228060506,14.7316,101.89,101.8,157.63429491]
[1646228060711,11.54,101.91,101.8,59.32429491]
[1646228060909,55.1122,101.9,101.8,59.57429491]
[1646228061108,55.1122,101.9,101.8,157.63429491]
[1646228061514,6.0,101.9,101.8,157.63429491]
[1646228061708,42.4293,101.93,101.8,160.18333494]
[1646228061910,42.4293,101.93,101.83,52.20670059]
[1646228062108,42.4293,101.93,101.83,150.26670059]
[1646228062311,90.20063424,101.94,101.83,150.51670059]
[1646228062510,14.7263,101.92,101.83,150.51670059]
[1646228062709,14.7263,101.92,101.83,150.26670059]
[1646228062910,14.7263,101.92,101.84,2.54904003]
[1646228063110,14.7263,101.92,101.86,98.06]
[1646228063510,14.7263,101.92,101.87,57.38221914]
[1646228064709,14.9763,101.92,101.87,57.38221914]
[1646228065512,49.0903,101.94,101.87,57.38221914]
[1646228065513,14.7241,101.94,101.87,155.44221914]
[1646228065710,22.9762,101.97,101.87,155.69221914]
[1646228065910,29.5579036,101.98,101.87,155.69221914]
[1646228066111,18.2793,101.99,101.87,155.69221914]
[1646228066310,18.2793,101.99,101.9,141.48728292]
[1646228066510,14.3553,101.99,101.9,141.48728292]
[1646228067110,100.9080695,102.01,101.9,43.42728292]
[1646228067311,14.7208,101.96,101.9,43.42728292]
[1646228067511,42.1349695,101.99,101.9,43.42728292]
[1646228067815,19.16094519,101.96,101.9,43.42728292]
[1646228068015,19.41094519,101.96,101.9,43.42728292]
[1646228068616,19.41094519,101.96,101.87,0.25]
[1646228068912,14.725,101.93,101.86,47.0235]
[1646228069112,19.16094519,101.96,101.86,47.0235]
[1646228069314,38.2109695,101.96,101.86,47.0235]
[1646228069513,38.2109695,101.96,101.87,45.93696561]
[1646228070113,49.0879,101.95,101.87,45.93696561]
[1646228071115,49.0879,101.95,101.87,46.18696561]
[1646228071317,11.54,101.97,101.87,46.18696561]
[1646228071515,14.7241,101.94,101.87,46.18696561]
[1646228071917,14.7241,101.94,101.87,144.24696561]
[1646228072816,14.9741,101.94,101.87,144.24696561]
[1646228073819,14.7241,101.94,101.87,143.99696561]
[1646228074018,14.7214,101.96,101.87,144.24696561]
[1646228074219,14.7214,101.96,101.87,143.99696561]
[1646228074422,51.04129176,101.98,101.86,47.0235]
[1646228074718,29.39956147,101.95,101.82,22.7498]
[1646228074918,29.39956147,101.95,101.8,47.145]
[1646228074919,17.06280003,101.94,101.8,47.145]
[1646228075123,14.7345,101.87,101.8,47.145]
[1646228075319,14.7345,101.87,101.81,56.72039584]
[1646228075523,14.9845,101.87,101.81,56.72039584]
[1646228076524,14.7345,101.87,101.81,56.72039584]
[1646228080224,14.9845,101.87,101.81,56.72039584]
[1646228080826,14.7345,101.87,101.81,154.78039584]
[1646228081026,14.7316,101.89,101.81,154.78039584]
[1646228081227,14.7316,101.89,101.81,155.03039584]
[1646228082026,14.7285,101.91,101.81,155.03039584]
[1646228082226,21.92622814,101.93,101.82,0.41782976]
[1646228082426,25.85222814,101.95,101.81,166.57039584]
[1646228082627,25.85222814,101.95,101.85,98.06]
[1646228082827,3.926,101.95,101.87,98.06]
[1646228083028,3.926,101.95,101.88,54.85900367]
[1646228083231,73.15552073,101.96,101.88,54.85900367]
[1646228083430,48.45802073,101.96,101.88,54.85900367]
[1646228083629,6.0,101.95,101.88,54.85900367]
[1646228084031,14.7241,101.94,101.88,54.85900367]
[1646228086536,0.25,101.94,101.85,23.0628]
[1646228086737,74.45436162,101.96,101.85,23.0628]
[1646228086937,20.53956147,101.94,101.85,23.0628]
[1646228087136,20.53956147,101.94,101.83,23.94]
[1646228087137,32.07956147,101.94,101.83,23.94]
[1646228087537,3.924,101.93,101.84,51.98707837]
[1646228087938,14.7305,101.89,101.84,51.98707837]
[1646228088639,24.46356147,101.93,101.84,51.98707837]
[1646228088839,3.924,101.93,101.84,51.98707837]
[1646228089039,15.0021,101.94,101.84,51.98707837]
[1646228089239,11.54,101.95,101.84,52.23707837]
[1646228089440,11.54,101.95,101.85,98.06]
[1646228089640,36.00356147,101.95,101.86,52.80991177]
[1646228090049,14.7258,101.93,101.86,52.80991177]
[1646228090251,14.7258,101.93,101.86,151.11991177]
[1646228090449,81.7751,101.96,101.86,151.11991177]
[1646228090651,6.0,101.95,101.86,151.11991177]
[1646228091052,70.2351,101.96,101.86,151.11991177]
[1646228091257,14.7234,101.94,101.86,151.11991177]
[1646228091453,14.7234,101.94,101.86,150.86991177]
[1646228091654,14.7234,101.94,101.86,56.98391177]
[1646228091852,11.54,101.97,101.86,56.73391177]
[1646228092151,33.12043528,101.96,101.86,53.05991177]
[1646228092351,20.4878603,101.95,101.86,53.05991177]
[1646228092551,20.4878603,101.95,101.86,52.80991177]
[1646228092552,22.82822525,101.95,101.86,52.80991177]
[1646228092752,43.68429558,101.95,101.86,52.80991177]
[1646228093153,14.7262,101.92,101.86,52.80991177]
[1646228095054,14.7262,101.92,101.87,58.09]
[1646228095355,14.7242,101.94,101.88,45.11991683]
[1646228095754,49.0883,101.95,101.88,45.11991683]
[1646228096555,49.3383,101.95,101.88,45.11991683]
[1646228097155,14.7248,101.93,101.88,45.11991683]
[1646228099563,26.62306495,101.96,101.88,201.26991683]
[1646228099764,26.62306495,101.96,101.88,103.20991683]
[1646228099964,18.89142147,101.97,101.88,201.26991683]
[1646228100164,26.49516495,101.99,101.88,201.51991683]
[1646228100364,116.824,102.01,101.88,204.06895686]
[1646228100564,3.924,102.01,101.91,53.10813055]
[1646228100763,15.463,102.02,101.91,209.50813055]
[1646228100966,38.36082513,102.01,101.91,209.25813055]
[1646228101169,3.923,102.0,101.91,209.25813055]
[1646228101364,38.36082513,102.01,101.91,209.25813055]
[1646228101365,49.057,102.01,101.91,209.50813055]
[1646228101967,49.057,102.01,101.91,224.36823055]
[1646228102164,3.923,102.0,101.91,224.36823055]
[1646228102565,14.7162,101.99,101.91,224.36823055]
[1646228103868,14.9662,101.99,101.91,224.36823055]
[1646228104468,14.9662,101.99,101.91,224.11823055]
[1646228104669,14.719,101.97,101.91,53.10813055]
[1646228105069,2.34036495,101.96,101.91,53.10813055]
[1646228106173,17.06136495,101.96,101.91,53.10813055]
[1646228106669,2.34036495,101.96,101.91,53.10813055]
[1646228106873,2.32841817,101.98,101.91,53.10813055]
[1646228107472,14.7181,101.98,101.91,53.35813055]
[1646228107672,14.7181,101.98,101.92,58.09]
[1646228107974,14.7181,101.98,101.91,53.35813055]
[1646228108472,14.7154,102.0,101.91,53.35813055]
[1646228108675,14.7154,102.0,101.92,58.09]
[1646228108972,52.9703,102.03,101.95,53.34881127]
[1646228109179,6.0,102.02,101.95,53.34881127]
[1646228109372,8.32841817,102.02,101.95,53.34881127]
[1646228109774,14.7133,102.01,101.95,53.34881127]
[1646228110475,14.7133,102.01,101.95,209.49881127]
[1646228110674,6.0,102.02,101.95,209.74881127]
[1646228111074,6.25041817,102.04,101.95,111.68881127]
[1646228111277,6.0,102.03,101.95,111.68881127]
[1646228111877,39.60262147,102.03,101.95,111.68881127]
[1646228112076,39.60262147,102.03,101.95,209.74881127]
[1646228112276,39.60262147,102.03,101.95,53.34881127]
[1646228112277,46.6892433,102.03,101.95,53.34881127]
[1646228113077,46.9392433,102.03,101.95,53.34881127]
[1646228113477,58.4792433,102.03,101.95,53.34881127]
[1646228114076,14.7149,102.0,101.95,53.34881127]
[1646228114278,14.7149,102.0,101.89,121.9362]
[1646228114477,14.7149,102.0,101.89,50.4634]
[1646228114478,2.32841817,101.99,101.89,50.4634]
[1646228115080,2.32841817,101.99,101.89,46.5404]
[1646228115281,2.32841817,101.99,101.9,53.71259406]
[1646228115581,14.7206,101.96,101.9,53.71259406]
[1646228116582,14.9706,101.96,101.9,53.71259406]
[1646228116782,14.9706,101.96,101.9,209.86259406]
[1646228116980,14.9706,101.96,101.9,111.80259406]
[1646228117183,0.25,101.96,101.9,111.80259406]